bitfinex-derivatives/quotes_ETHF0:USTF0_20210407
["timestamp","ask_amount","ask_price","bid_price","bid_amount"]
[1617791984453,2.0,2035.0,2034.5,2.90695]
[1617791984857,2.0,2035.0,2034.6,5.95]
[1617791986558,2.90695,2034.7,2034.6,73.5614]
[1617791986857,2.90695,2034.7,2034.6,5.95]
[1617791988159,5.84625,2034.7,2034.6,5.95]
[1617791988958,77.4353,2034.6,2034.5,5.98]
[1617791989281,77.4353,2034.6,2034.1,2.90695]
[1617791989460,77.4353,2034.6,2034.5,6.19]
[1617791989860,77.4353,2034.6,2034.3,5.92]
[1617791990059,77.4353,2034.6,2034.5,6.12]
[1617791990465,77.4353,2034.6,2034.4,6.08]
[1617791990661,77.4353,2034.6,2034.5,5.92]
[1617791991061,77.4353,2034.6,2034.2,5.99]
[1617791991361,77.4353,2034.6,2034.5,6.01]
[1617791991762,77.4353,2034.6,2034.2,6.18]
[1617791992061,77.4353,2034.6,2034.5,6.19]
[1617791992262,77.4353,2034.6,2034.2,5.95]
[1617791992462,2.90695,2034.3,2034.2,5.95]
[1617791992762,2.90695,2034.3,2034.1,2.90695]
[1617791992964,2.90695,2034.3,2034.2,5.99]
[1617791995172,2.90695,2034.3,2033.9,6.13]
[1617791995573,2.90695,2034.3,2034.2,5.94]
[1617791995772,2.90695,2034.3,2033.9,6.13]
[1617791996172,2.90695,2034.3,2034.2,6.17]
[1617791996372,2.90695,2034.3,2033.9,6.16]
[1617791996571,77.4353,2034.6,2034.0,2.90695]
[1617791997171,2.0,2035.0,2034.1,6.07]
[1617791997372,2.0,2035.0,2034.3,64.9478]
[1617791997772,2.0,2035.0,2034.4,6.0]
[1617791999609,4.0,2035.0,2034.4,6.0]
[1617792000373,34.0,2035.0,2034.4,6.0]
[1617792000575,2.90695,2034.5,2034.4,6.0]
[1617792000780,5.68125,2034.5,2034.4,6.0]
[1617792001176,35.68125,2034.5,2033.2,73.7755]
[1617792001376,2.0,2034.4,2033.2,73.7755]
[1617792001578,67.4248,2033.7,2033.2,73.7755]
[1617792001902,70.2799,2033.7,2033.3,6.01]
[1617792002457,2.8551,2033.7,2033.3,6.01]
[1617792002578,2.90695,2033.4,2033.3,6.01]
[1617792002877,2.90695,2033.4,2032.4,2.90695]
[1617792003078,72.357,2033.3,2032.5,3.34]
[1617792003280,72.357,2033.3,2032.4,2.90695]
[1617792003578,72.357,2033.3,2032.5,6.13]
[1617792003879,74.357,2033.3,2032.5,6.13]
[1617792004579,2.90695,2032.6,2032.5,6.13]
[1617792004779,5.62295,2032.6,2032.5,6.13]
[1617792005487,2.716,2032.6,2032.5,6.13]
[1617792005782,58.2647,2033.7,2032.5,6.13]
[1617792005980,58.2647,2033.7,2032.9,57.696]
[1617792006180,58.2647,2033.7,2032.9,60.0492]
[1617792006380,58.2647,2033.7,2033.0,6.05]
[1617792006580,2.90695,2033.1,2033.0,8.95695]
[1617792007380,5.71835,2033.1,2033.0,8.95695]
[1617792007680,5.71835,2033.1,2033.0,6.05]
[1617792008079,5.71835,2033.1,2032.6,55.3251]
[1617792008080,5.71835,2033.1,2032.7,6.01]
[1617792008482,5.71835,2033.1,2033.0,5.97]
[1617792008780,5.71835,2033.1,2032.6,55.3251]
[1617792008781,5.71835,2033.1,2032.7,6.0]
[1617792009080,5.71835,2033.1,2033.0,6.16]
[1617792009382,5.71835,2033.1,2032.7,5.96]
[1617792009580,5.71835,2033.1,2033.0,6.11]
[1617792010082,5.71835,2033.1,2032.7,5.99]
[1617792010280,5.71835,2033.1,2033.0,5.95]
[1617792010480,5.71835,2033.1,2032.7,5.97]
[1617792011082,2.90695,2032.8,2032.7,5.97]
[1617792011498,2.90695,2032.8,2031.7,5.97]
[1617792011680,75.6531,2032.3,2031.7,5.97]
[1617792011879,78.3328,2032.3,2031.1,2.0]
[1617792012081,78.3328,2032.3,2031.8,6.06]
[1617792012481,78.3328,2032.3,2031.2,6.02]
[1617792012681,78.3328,2032.3,2031.9,5.93]
[1617792012888,2.90695,2032.0,2031.9,5.93]
[1617792013082,2.90695,2032.0,2031.7,2.90695]
[1617792013293,2.90695,2032.0,2031.8,3.39]
[1617792013489,2.90695,2032.0,2031.9,5.96]
[1617792013687,2.90695,2032.0,2031.7,2.90695]
[1617792013888,62.4725,2031.7,2030.7,77.0648]
[1617792014184,64.753,2031.7,2030.8,6.01]
[1617792014587,2.2805,2031.7,2030.8,6.01]
[1617792014787,73.761,2031.0,2030.8,6.01]
[1617792014992,2.90695,2030.9,2030.6,5.98]
[1617792015386,2.90695,2030.9,2030.0,75.8454]
[1617792015588,2.90695,2030.9,2030.7,5.9]
[1617792015988,2.90695,2030.9,2030.4,5.99]
[1617792016190,2.90695,2030.9,2030.0,75.8454]
[1617792016191,2.90695,2030.9,2030.2,6.17]
[1617792016395,2.90695,2030.9,2030.8,5.93]
[1617792016589,2.90695,2030.9,2030.5,5.94]
[1617792016790,2.90695,2030.9,2030.0,75.8454]
[1617792016791,2.90695,2030.9,2030.3,5.94]
[1617792016990,76.2733,2031.0,2030.8,6.07]
[1617792017192,2.5123,2031.0,2030.6,5.75]
[1617792017390,2.5123,2031.0,2030.1,0.02]
[1617792017391,75.2758,2030.8,2030.1,0.02]
[1617792017592,75.2758,2030.8,2030.6,5.99]
[1617792017996,75.2758,2030.8,2030.3,5.99]
[1617792018194,75.2758,2030.8,2029.6,0.49]
[1617792018397,75.2758,2030.8,2030.7,4.99]
[1617792018596,75.2758,2030.8,2030.4,5.92]
[1617792018798,75.2758,2030.8,2029.6,3.89]
[1617792019098,2.5123,2031.0,2030.7,5.73]
[1617792019397,65.0925,2031.0,2030.5,5.91]
[1617792019599,2.5123,2031.0,2030.8,4.91]
[1617792019801,2.5123,2031.0,2030.7,71.3807]
[1617792019999,32.0,2031.4,2030.6,6.1]
[1617792020201,32.0,2031.4,2029.1,0.9784]
[1617792020202,32.68,2031.0,2030.9,5.96]
[1617792020399,32.68,2031.0,2030.8,0.27]
[1617792020601,82.2376,2030.9,2029.0,71.4475]
[1617792020902,2.90695,2029.8,2029.7,2.90695]
[1617792021402,2.90695,2029.8,2029.7,8.88695]
[1617792022704,30.0,2031.5,2029.7,8.88695]
[1617792022902,2.2805,2031.7,2030.5,74.3162]
[1617792023206,65.6127,2032.0,2030.5,77.3759]
[1617792023423,14.8811,2032.2,2030.6,6.12]
[1617792023622,30.0,2032.7,2031.3,63.6952]
[1617792023815,30.0,2032.7,2031.3,66.4785]
[1617792024005,30.0,2032.7,2031.4,5.97]
[1617792024902,2.90695,2031.5,2031.4,5.97]
[1617792025403,2.90695,2031.5,2031.1,6.06]
[1617792025604,2.90695,2031.5,2031.4,6.2]
[1617792026012,2.90695,2031.5,2031.1,6.15]
[1617792026212,2.90695,2031.5,2031.4,6.13]
[1617792026608,2.90695,2031.5,2031.1,6.15]
[1617792026804,2.90695,2031.5,2031.4,6.04]
[1617792027205,2.90695,2031.5,2031.1,6.09]
[1617792027606,2.90695,2031.5,2031.4,5.95]
[1617792027806,2.90695,2031.5,2031.1,5.91]
[1617792028007,2.90695,2031.5,2031.2,2.0]
[1617792028306,2.90695,2031.5,2031.4,6.16]
[1617792028508,2.90695,2031.5,2031.3,6.09]
[1617792028807,74.109,2032.6,2031.4,7.99]
[1617792029006,74.109,2032.6,2031.9,69.03475]
[1617792029210,74.109,2032.6,2032.0,2.0]
[1617792029417,74.109,2032.6,2032.0,7.97]
[1617792029608,2.0,2034.2,2032.0,7.97]
[1617792030013,59.2745,2033.2,2032.0,7.97]
[1617792030210,62.1781,2033.2,2032.0,5.97]
[1617792030912,2.90695,2032.1,2032.0,5.97]
[1617792031111,5.42955,2032.1,2032.0,5.97]
[1617792031812,5.42955,2032.1,2030.9,6.04]
[1617792032011,5.42955,2032.1,2032.0,6.01]
[1617792032412,5.42955,2032.1,2030.9,6.17]
[1617792032813,5.42955,2032.1,2032.0,6.06]
[1617792033113,5.42955,2032.1,2030.9,6.12]
[1617792033314,5.42955,2032.1,2032.0,5.9]
[1617792033513,35.42955,2032.1,2032.0,5.9]
[1617792033813,35.42955,2032.1,2029.9,2.0]
[1617792034015,69.3069,2031.5,2029.9,84.1601]
[1617792034215,71.1751,2031.5,2029.9,84.1601]
[1617792034616,1.8682,2031.5,2030.0,5.91]
[1617792034821,82.6243,2030.8,2030.0,5.91]
[1617792035028,84.5384,2030.8,2030.1,2.90695]
[1617792035417,84.5384,2030.8,2030.2,0.06]
[1617792036017,1.9141,2030.8,2030.2,0.06]
[1617792036219,1.9141,2030.8,2030.2,71.3344]
[1617792036422,81.363,2031.4,2030.2,71.3344]
[1617792036920,81.363,2031.4,2030.6,2.90695]
[1617792037419,81.363,2031.4,2030.7,5.96]
[1617792038319,81.363,2031.4,2030.3,6.0]
[1617792038519,81.363,2031.4,2030.8,6.06]
[1617792038920,81.363,2031.4,2030.5,2.90695]
[1617792039119,81.363,2031.4,2030.9,6.11]
[1617792039522,81.363,2031.4,2030.6,6.04]
[1617792039721,81.363,2031.4,2030.2,71.2744]
[1617792039927,81.363,2031.4,2031.0,6.17]
[1617792040121,81.363,2031.4,2030.7,5.95]
[1617792040321,81.363,2031.4,2030.2,71.2744]
[1617792040621,81.363,2031.4,2031.1,5.99]
[1617792040923,81.363,2031.4,2030.3,3.61]
[1617792041120,2.90695,2030.9,2030.2,74.18135]
[1617792041422,5.93525,2030.9,2030.5,6.14]
[1617792041622,5.93525,2030.9,2030.3,6.2]
[1617792041822,73.6145,2030.6,2030.2,2.90695]
[1617792042223,73.6145,2030.6,2030.3,6.02]
[1617792042622,2.90695,2030.9,2030.3,6.02]
[1617792043022,2.90695,2030.9,2030.8,2.90695]
[1617792043223,2.90695,2030.9,2030.8,4.81985]
[1617792043424,58.8679,2032.3,2030.9,67.5226]
[1617792043923,58.8679,2032.3,2031.0,5.95]
[1617792044424,88.8679,2032.3,2031.0,5.95]
[1617792044724,90.8679,2032.3,2031.0,5.95]
[1617792045242,2.90695,2031.1,2031.0,5.95]
[1617792045731,58.8679,2032.3,2031.0,5.95]
[1617792045928,58.8679,2032.3,2031.0,8.443]
[1617792047634,88.8679,2032.3,2031.0,5.95]
[1617792047830,90.8679,2032.3,2031.0,5.95]
[1617792048632,32.0,2032.3,2031.0,5.95]
[1617792049032,32.0,2032.3,2030.1,2.90695]
[1617792049033,2.90695,2031.1,2030.1,2.90695]
[1617792049330,5.91825,2031.1,2030.2,0.98]
[1617792050731,2.90695,2031.1,2030.2,3.1415]
[1617792051032,2.90695,2030.4,2030.2,3.1415]
[1617792051731,2.0,2031.0,2030.2,3.1415]
[1617792052433,2.0,2031.0,2030.2,0.98]
[1617792053033,2.90695,2030.3,2030.2,0.98]
[1617792053634,5.17645,2030.3,2030.2,0.98]
[1617792054036,70.48605,2030.3,2030.2,0.98]
[1617792054634,70.48605,2030.3,2029.2,6.12]
[1617792055037,70.48605,2030.3,2030.2,6.01]
[1617792055236,70.48605,2030.3,2029.7,2.90695]
[1617792055436,70.48605,2030.3,2029.8,6.17]
[1617792055642,70.48605,2030.3,2030.2,5.91]
[1617792055837,70.48605,2030.3,2029.1,63.6415]
[1617792056052,70.48605,2030.3,2029.9,5.99]
[1617792056237,70.48605,2030.3,2030.2,4.85]
[1617792056437,70.48605,2030.3,2029.1,63.6415]
[1617792056638,70.48605,2030.3,2030.0,6.2]
[1617792057053,2.90695,2029.4,2029.3,2.90695]
[1617792057738,2.90695,2029.4,2029.3,6.19]
[1617792058243,2.90695,2029.4,2028.4,5.92]
[1617792058438,2.90695,2029.4,2029.3,6.09]
[1617792058938,2.90695,2029.4,2028.4,6.14]
[1617792059142,68.4229,2029.6,2029.3,6.14]
[1617792059438,68.4229,2029.6,2029.2,6.06]
[1617792059638,68.4229,2029.6,2029.4,5.92]
[1617792060152,68.4229,2029.6,2029.1,2.90695]
[1617792060153,68.4229,2029.6,2029.3,6.05]
[1617792060338,68.4229,2029.6,2029.5,6.19]
[1617792060757,68.4229,2029.6,2029.4,6.03]
[1617792060939,68.4229,2029.6,2029.5,6.16]
[1617792061140,71.32985,2029.6,2029.5,6.16]
[1617792061340,71.32985,2029.6,2029.1,2.90695]
[1617792061540,2.90695,2029.6,2029.5,5.63]
[1617792061841,2.90695,2029.6,2029.2,77.6051]
[1617792062141,2.90695,2029.6,2029.5,6.03]
[1617792062542,2.90695,2029.6,2029.3,5.97]
[1617792062743,2.90695,2029.6,2029.5,5.97]
[1617792063141,2.90695,2029.6,2029.3,6.1]
[1617792063341,2.90695,2029.6,2029.5,5.93]
[1617792063642,2.90695,2029.6,2029.5,2.1567]
[1617792063840,59.3208,2030.7,2029.5,2.1567]
[1617792064041,30.0,2030.9,2029.5,8.3267]
[1617792064343,2.0,2031.0,2029.8,79.8124]
[1617792064842,2.0,2031.0,2029.9,6.14]
[1617792067042,2.0,2031.0,2030.0,2.0]
[1617792067241,2.0,2031.0,2030.9,2.90695]
[1617792067442,2.0,2031.0,2030.9,5.02855]
[1617792067641,2.0,2031.0,2030.9,5.78855]
[1617792068943,2.0,2031.0,2030.9,7.78855]
[1617792069942,2.0,2031.0,2030.9,5.78855]
[1617792070946,2.0,2031.0,2030.9,3.66695]
[1617792073356,2.0,2031.0,2030.9,6.44245]
[1617792074352,2.0,2031.0,2030.9,8.44245]
[1617792074551,76.3966,2032.9,2031.4,68.8903]
[1617792074751,76.3966,2032.9,2031.4,71.7377]
[1617792075051,76.3966,2032.9,2031.5,5.95]
[1617792075252,76.3966,2032.9,2032.7,2.90695]
[1617792075553,2.0,2033.8,2032.7,5.99085]
[1617792075752,2.0,2033.8,2032.8,6.03]
[1617792076552,32.0,2033.8,2032.8,6.03]
[1617792077252,30.0,2033.8,2032.8,6.03]
[1617792077451,77.1706,2034.3,2032.8,6.03]
[1617792077654,107.1706,2034.3,2032.8,6.03]
[1617792079063,45.9571,2034.3,2032.8,6.03]
[1617792079280,2.90695,2032.9,2032.8,6.03]
[1617792079455,2.90695,2032.9,2032.5,82.3714]
[1617792079959,2.90695,2032.9,2032.8,5.71]
[1617792080163,2.90695,2032.9,2032.6,0.4]
[1617792080359,2.90695,2032.9,2032.8,5.91]
[1617792080771,2.90695,2032.9,2032.6,5.92]
[1617792081105,23.83,2032.8,2031.3,57.9888]
[1617792081259,83.3718,2032.8,2031.3,57.9888]
[1617792081560,59.5418,2032.8,2031.3,57.9888]
[1617792081759,59.5418,2032.8,2031.4,6.05]
[1617792082160,61.5418,2032.8,2031.4,6.05]
[1617792083161,91.5418,2032.8,2031.5,2.90695]
[1617792083364,91.5418,2032.8,2031.4,6.05]
[1617792083564,91.5418,2032.8,2031.6,6.04]
[1617792083763,91.5418,2032.8,2031.3,57.9888]
[1617792084063,91.5418,2032.8,2031.4,6.13]
[1617792084666,61.5418,2032.8,2031.4,6.13]
[1617792085266,61.5418,2032.8,2031.5,2.90695]
[1617792085665,61.5418,2032.8,2031.6,5.93]
[1617792087066,59.5418,2032.8,2031.6,5.93]
[1617792087266,2.90695,2031.7,2031.5,5.95]
[1617792087666,2.90695,2031.7,2031.3,57.9888]
[1617792087966,2.90695,2031.7,2031.6,6.18]
[1617792088166,2.90695,2031.7,2031.3,57.9888]
[1617792088571,2.90695,2031.7,2031.6,6.08]
[1617792088773,2.90695,2031.7,2031.4,6.0]
[1617792088970,5.84055,2031.7,2029.3,2.0]
[1617792089270,5.84055,2031.7,2030.5,2.90695]
[1617792089271,2.90695,2030.8,2030.5,2.90695]
[1617792089470,5.75465,2030.8,2030.5,2.90695]
[1617792089718,5.75465,2030.8,2030.6,5.98]
[1617792090072,5.75465,2030.8,2030.4,79.7254]
[1617792090473,5.75465,2030.8,2030.7,6.14]
[1617792090875,5.75465,2030.8,2030.5,6.01]
[1617792091075,2.90695,2030.8,2030.7,5.96]
[1617792091273,57.4162,2031.6,2030.7,8.86695]
[1617792091476,2.0,2032.3,2030.7,2.90695]
[1617792091677,2.0,2032.3,2031.0,69.2577]
[1617792091912,69.7768,2032.4,2031.0,69.2577]
[1617792092119,69.7768,2032.4,2031.1,6.13]
[1617792092120,56.8722,2032.4,2031.1,6.13]
[1617792093285,56.8722,2032.4,2031.5,2.90695]
[1617792093483,56.8722,2032.4,2031.5,5.78285]
[1617792093791,56.8722,2032.4,2031.6,6.11]
[1617792095378,2.90695,2031.7,2031.6,6.11]
[1617792095580,5.27725,2031.7,2031.1,5.9]
[1617792095779,5.27725,2031.7,2031.6,5.91]
[1617792096079,5.27725,2031.7,2031.2,6.17]
[1617792096080,80.25755,2031.7,2031.2,6.17]
[1617792096480,80.25755,2031.7,2031.6,5.95]
[1617792096680,80.25755,2031.7,2031.3,6.06]
[1617792097180,80.25755,2031.7,2030.6,2.90695]
[1617792097181,80.25755,2031.7,2030.9,5.99]
[1617792097381,77.3506,2031.7,2031.4,5.97]
[1617792097582,2.3703,2031.7,2031.4,2.7743]
[1617792097789,0.01383351,2033.1,2031.4,2.7743]
[1617792097790,81.0917,2032.7,2031.4,2.7743]
[1617792097982,81.0917,2032.7,2031.5,5.95]
[1617792098484,81.1715,2032.1,2031.5,5.95]
[1617792098684,83.5298,2032.1,2031.4,5.91]
[1617792098886,83.5298,2032.1,2030.4,68.6933]
[1617792098887,83.5298,2032.1,2031.6,0.46]
[1617792099285,2.90695,2031.7,2031.5,5.69]
[1617792099585,2.90695,2031.7,2030.6,6.09]
[1617792099785,2.90695,2031.7,2031.6,5.94]
[1617792100185,2.90695,2031.7,2030.7,6.03]
[1617792100389,2.90695,2031.7,2031.5,6.14]
[1617792100587,2.90695,2031.7,2031.6,5.14]
[1617792100788,2.90695,2031.7,2030.8,5.83]
[1617792100986,5.85005,2031.7,2030.7,6.09]
[1617792101186,5.85005,2031.7,2031.6,5.92]
[1617792101389,5.85005,2031.7,2030.9,5.21]
[1617792101586,5.85005,2031.7,2030.8,6.04]
[1617792101789,5.85005,2031.7,2031.6,6.0]
[1617792102086,35.85005,2031.7,2030.9,4.63]
[1617792102286,37.85005,2031.7,2030.5,0.14]
[1617792102488,56.87,2031.2,2029.6,73.1291]
[1617792102688,58.765,2031.2,2029.6,73.1291]
[1617792102889,58.765,2031.2,2030.6,6.07]
[1617792103099,58.765,2031.2,2029.7,6.07]
[1617792103290,58.765,2031.2,2030.2,2.90695]
[1617792103491,58.765,2031.2,2030.7,6.02]
[1617792103797,58.765,2031.2,2030.3,5.98]
[1617792104091,56.87,2031.2,2030.8,6.04]
[1617792104390,56.87,2031.2,2030.3,6.18]
[1617792104592,56.87,2031.2,2030.9,6.01]
[1617792104995,58.786,2031.6,2030.5,75.4597]
[1617792105193,58.786,2031.6,2031.0,6.18]
[1617792105390,2.90695,2031.1,2031.0,6.18]
[1617792105591,2.90695,2031.1,2030.6,6.03]
[1617792105792,2.90695,2031.1,2030.5,75.4597]
[1617792105793,2.90695,2031.1,2031.0,6.08]
[1617792106195,2.90695,2031.1,2030.5,75.4597]
[1617792106196,2.90695,2031.1,2030.6,6.19]
[1617792106418,2.90695,2031.1,2031.0,6.1]
[1617792106694,78.35605,2031.1,2031.0,6.1]
[1617792107205,78.35605,2031.1,2029.9,6.14]
[1617792107396,75.4491,2031.1,2030.1,2.90695]
[1617792107595,75.4491,2031.1,2031.0,5.93]
[1617792107795,75.4491,2031.1,2030.2,6.08]
[1617792108197,75.4491,2031.1,2031.0,6.19]
[1617792108400,75.4491,2031.1,2030.1,2.90695]
[1617792108598,75.4491,2031.1,2030.2,6.2]
[1617792108798,75.4491,2031.1,2031.0,5.97]
[1617792109202,75.4491,2031.1,2030.2,6.15]
[1617792109401,2.90695,2030.3,2030.1,2.90695]
[1617792109900,2.90695,2030.3,2030.2,5.97]
[1617792112001,2.90695,2030.3,2029.9,6.08]
[1617792112302,5.22495,2030.3,2029.9,6.08]
[1617792113502,2.90695,2030.0,2029.9,6.08]
[1617792114720,75.4491,2031.1,2029.9,6.08]
[1617792115503,75.4491,2031.1,2030.6,2.90695]
[1617792116105,75.4491,2031.1,2030.7,5.97]
[1617792117406,2.90695,2030.8,2030.7,5.97]
[1617792121714,2.90695,2030.8,2030.0,2.90695]
[1617792121915,32.90695,2030.8,2030.0,2.90695]
[1617792122221,77.4045,2030.3,2029.0,64.9683]
[1617792122416,79.6778,2030.3,2029.0,64.9683]
[1617792122617,79.6778,2030.3,2030.1,5.95]
[1617792122815,2.0,2030.2,2029.5,5.94]
[1617792123016,2.0,2030.2,2028.0,78.8901]
[1617792123216,57.0584,2029.5,2028.0,62.4133]
[1617792123516,59.2752,2029.5,2029.3,2.90695]
[1617792123917,59.2752,2029.5,2029.4,1.02]
[1617792124720,2.0,2030.2,2029.4,1.02]
[1617792124920,66.7015,2029.8,2029.4,1.02]
[1617792125119,69.0452,2029.8,2029.4,1.02]
[1617792125519,2.90695,2029.5,2029.4,1.02]
[1617792128621,5.67985,2029.5,2029.4,1.02]
[1617792130951,5.67985,2029.5,2028.0,6.06]
[1617792131139,59.259,2029.4,2028.0,6.06]
[1617792131533,59.259,2029.4,2028.6,2.90695]
[1617792132022,59.259,2029.4,2028.7,6.06]
[1617792132225,89.259,2029.4,2028.7,6.06]
[1617792133025,91.259,2029.4,2028.7,6.06]
[1617792133724,91.259,2029.4,2028.3,2.90695]
[1617792133725,2.90695,2028.8,2028.3,2.90695]
[1617792133924,5.51885,2028.8,2028.3,2.90695]
[1617792134124,5.51885,2028.8,2028.4,0.17]
[1617792134930,6.51495,2028.8,2028.4,0.17]
[1617792135228,5.51885,2028.8,2028.4,0.17]
[1617792135628,2.90695,2028.5,2028.4,0.17]
[1617792135828,2.90695,2028.5,2028.1,5.92]
[1617792136329,2.90695,2028.5,2028.4,6.06]
[1617792136530,2.90695,2028.5,2028.2,6.14]
[1617792136730,2.90695,2028.5,2026.8,59.7104]
[1617792136931,65.2181,2027.9,2026.8,59.7104]
[1617792137135,67.8742,2027.9,2026.8,59.7104]
[1617792137535,67.8742,2027.9,2027.2,2.90695]
[1617792137933,67.8742,2027.9,2027.3,6.16]
[1617792139340,67.8742,2027.9,2027.1,0.02]
[1617792139539,91.7142,2027.9,2027.2,6.06]
[1617792139739,91.7142,2027.9,2027.4,6.18]
[1617792139941,91.7142,2027.9,2027.1,0.02]
[1617792140140,67.8742,2027.9,2027.3,6.09]
[1617792140341,2.6561,2027.9,2027.5,6.01]
[1617792140644,56.7035,2028.5,2027.2,6.21]
[1617792140841,56.7035,2028.5,2027.6,6.0]
[1617792141042,56.7035,2028.5,2027.6,8.2689]
[1617792141244,56.7035,2028.5,2027.6,2.2689]
[1617792141459,56.7035,2028.5,2027.7,5.95]
[1617792141648,44.0528,2028.9,2027.7,5.95]
[1617792141846,77.9659,2028.4,2027.7,5.95]
[1617792142142,77.9659,2028.4,2027.6,6.18]
[1617792142344,80.7688,2028.4,2027.8,6.07]
[1617792142643,2.8029,2028.4,2027.7,6.12]
[1617792142846,55.2867,2027.8,2027.7,6.12]
[1617792143045,55.2867,2027.8,2027.1,0.02]
[1617792143247,55.2867,2027.8,2027.7,6.11]
[1617792143547,58.19365,2027.8,2027.4,2.90695]
[1617792143747,60.12305,2027.8,2027.4,2.90695]
[1617792143949,60.12305,2027.8,2027.7,6.08]
[1617792144147,60.12305,2027.8,2027.1,0.02]
[1617792144550,60.12305,2027.8,2027.7,6.0]
[1617792144750,60.12305,2027.8,2027.5,6.14]
[1617792144947,67.259,2029.1,2027.4,66.7043]
[1617792145148,67.259,2029.1,2027.7,6.11]
[1617792145450,67.259,2029.1,2027.5,33.2]
[1617792145651,2.90695,2028.8,2028.4,2.90695]
[1617792145848,2.90695,2028.8,2028.4,6.00235]
[1617792146054,2.90695,2028.8,2028.5,5.93]
[1617792147858,2.90695,2028.8,2028.0,1.9872]
[1617792148058,2.90695,2028.8,2028.0,8.0972]
[1617792148258,2.90695,2028.8,2028.6,5.97]
[1617792148562,2.90695,2028.8,2027.9,2.90695]
[1617792148763,2.90695,2028.8,2028.7,5.98]
[1617792148764,4.89215,2028.8,2028.7,5.98]
[1617792149165,4.89215,2028.8,2028.0,6.15]
[1617792149362,4.89215,2028.8,2028.7,6.14]
[1617792149877,2.90695,2028.8,2028.5,2.6139]
[1617792150058,2.90695,2028.8,2028.7,5.99]
[1617792150562,2.90695,2028.8,2028.4,5.06]
[1617792150758,2.90695,2028.8,2028.7,5.79]
[1617792151259,71.6856,2029.3,2028.5,9.0198]
[1617792151475,12.8726,2031.4,2028.7,5.67]
[1617792151663,12.8726,2031.4,2029.2,2.90695]
[1617792151971,61.6178,2030.8,2029.3,6.02]
[1617792153664,61.6178,2030.8,2029.8,2.90695]
[1617792153863,61.6178,2030.8,2029.8,5.70935]
[1617792154071,61.6178,2030.8,2029.9,6.1]
[1617792154867,91.6178,2030.8,2029.9,6.1]
[1617792155164,91.6178,2030.8,2029.3,6.11]
[1617792155467,91.6178,2030.8,2030.0,6.06]
[1617792155680,2.90695,2030.1,2029.4,5.91]
[1617792155864,3.88015,2030.1,2029.4,5.91]
[1617792156064,57.4165,2029.8,2028.1,63.3888]
[1617792156470,57.4165,2029.8,2029.5,6.08]
[1617792156668,87.4165,2029.8,2028.2,0.05]
[1617792156869,87.4165,2029.8,2028.2,2.0]
[1617792157270,87.4165,2029.8,2028.1,63.3888]
[1617792157471,87.4165,2029.8,2028.3,5.92]
[1617792157671,2.90695,2028.4,2028.2,8.82695]
[1617792157877,5.35815,2028.4,2028.2,5.92]
[1617792158073,5.35815,2028.4,2027.3,2.0]
[1617792158274,5.35815,2028.4,2028.3,5.92]
[1617792158673,5.35815,2028.4,2027.5,2.0]
[1617792158974,5.35815,2028.4,2028.3,5.94]
[1617792159172,5.35815,2028.4,2027.5,2.0]
[1617792159473,5.35815,2028.4,2028.3,6.05]
[1617792159674,2.90695,2028.4,2028.3,8.95695]
[1617792159973,32.0,2029.8,2028.3,2.90695]
[1617792159974,67.5734,2029.6,2028.3,2.90695]
[1617792160173,67.5734,2029.6,2028.3,8.85695]
[1617792161374,67.5734,2029.6,2028.3,10.85695]
[1617792161774,67.5734,2029.6,2029.0,2.90695]
[1617792162074,43.948,2030.6,2029.0,2.90695]
[1617792162075,82.3232,2030.4,2029.1,5.96]
[1617792162573,2.0,2030.3,2029.1,5.96]
[1617792163778,2.0,2030.3,2029.3,2.90695]
[1617792163981,62.0658,2029.7,2029.3,2.90695]
[1617792164175,64.4736,2029.7,2029.4,6.08]
[1617792164575,64.4736,2029.7,2028.4,30.0]
[1617792164775,64.4736,2029.7,2028.6,6.03]
[1617792164976,64.4736,2029.7,2029.5,6.03]
[1617792165180,62.0658,2029.7,2028.5,5.99]
[1617792165377,62.0658,2029.7,2028.7,6.02]
[1617792165577,62.0658,2029.7,2029.6,6.17]
[1617792165897,62.0658,2029.7,2029.5,2.90695]
[1617792165898,2.90695,2029.7,2029.5,2.90695]
[1617792166177,2.90695,2029.7,2029.6,5.99]
[1617792166377,2.90695,2029.7,2029.5,2.90695]
[1617792166777,2.90695,2029.7,2029.6,6.06]
[1617792167878,2.90695,2029.7,2029.1,2.90695]
[1617792168077,2.90695,2029.7,2029.2,3.29]